bitfinex/quotes_ETHUSD_20240823
["timestamp","ask_amount","ask_price","bid_price","bid_amount"]
[1724444829148,3.61994,2762.5,2761.9,0.0724084]
[1724444829479,3.61978,2762.6,2761.9,0.07240303]
[1724444829694,3.61978,2762.6,2761.8,0.362073]
[1724444829887,3.61978,2762.6,2761.9,0.55]
[1724444830052,3.61978,2762.6,2762.0,3.62056]
[1724444830452,3.61978,2762.6,2761.9,4.17058]
[1724444830453,6.61992,2762.5,2761.9,4.17058]
[1724444830660,7.34876,2762.4,2761.6,3.8725]
[1724444830978,7.34876,2762.4,2761.6,3.62105]
[1724444830979,7.24078,2762.2,2761.6,3.62105]
[1724444831298,3.62059,2762.0,2761.5,3.62113]
[1724444831464,3.0,2762.5,2761.2,3.62159]
[1724444831465,3.62103,2761.7,2761.2,3.62159]
[1724444833813,3.62103,2761.7,2761.0,3.62185]
[1724444834037,3.62118,2761.6,2761.1,0.55]
[1724444834605,3.62118,2761.6,2761.0,0.55]
[1724444834816,4.0338,2761.8,2761.0,0.55]
[1724444835024,4.0338,2761.8,2760.6,7.28916]
[1724444835025,3.62155,2761.3,2760.6,7.28916]
[1724444835206,3.0,2761.7,2760.3,3.62266]
[1724444835207,3.62188,2761.0,2760.4,3.62257]
[1724444835413,7.65542,2761.2,2760.6,3.62239]
[1724444835749,11.27712,2761.2,2760.6,3.62239]
[1724444835913,7.65542,2761.2,2760.6,3.62239]
[1724444836753,3.62162,2761.2,2760.6,3.62239]
[1724444836940,3.62162,2761.2,2760.6,4.34687]
[1724444837309,3.62162,2761.2,2760.7,3.62222]
[1724444837554,3.62139,2761.4,2760.9,3.6219]
[1724444838222,3.62139,2761.4,2760.7,3.62217]
[1724444838424,3.62148,2761.3,2760.7,3.62217]
[1724444839311,7.0338,2761.7,2760.7,4.346634]
[1724444839562,3.62142,2761.4,2760.8,3.62212]
[1724444839746,7.24284,2761.4,2760.8,3.62212]
[1724444840116,3.62142,2761.4,2760.8,3.62212]
[1724444840344,3.62142,2761.4,2760.7,3.62217]
[1724444840558,3.62142,2761.4,2760.9,3.62196]
[1724444842958,7.24285,2761.4,2760.9,3.62196]
[1724444843561,7.24285,2761.4,2760.7,3.62219]
[1724444843562,3.62148,2761.3,2760.7,3.62219]
[1724444844116,3.62148,2761.3,2760.7,7.24438]
[1724444844520,3.62148,2761.3,2760.7,3.62219]
[1724444844862,3.62148,2761.3,2760.8,3.62212]
[1724444845361,3.62142,2761.4,2760.8,3.62212]
[1724444845521,3.62142,2761.4,2760.8,4.34655]
[1724444845721,3.62149,2761.3,2760.8,4.34655]
[1724444846423,3.62142,2761.4,2760.9,3.622]
[1724444846851,7.2429,2761.4,2760.8,0.72443]
[1724444847048,3.62153,2761.3,2760.8,0.72443]
[1724444847417,5.91745,2761.2,2760.7,3.62214]
[1724444847674,3.62228,2760.7,2760.2,3.6228]
[1724444847834,2.2958,2761.2,2760.3,3.62279]
[1724444847835,3.62211,2760.9,2760.3,3.62279]
[1724444848920,3.62209,2760.9,2760.3,3.62279]
[1724444849115,3.62216,2760.8,2760.2,3.6228]
[1724444849522,3.62209,2760.9,2760.2,3.6228]
[1724444849523,3.6223,2760.7,2760.2,3.6228]
[1724444849820,3.62255,2760.5,2760.0,3.62311]
[1724444850026,3.62255,2760.5,2760.0,3.6231]
[1724444851273,3.62271,2760.4,2759.8,3.62337]
[1724444852371,6.01971,2760.6,2760.0,3.62318]
[1724444852679,7.0563429,2760.6,2760.0,3.62318]
[1724444853264,10.6788329,2760.6,2760.0,3.62318]
[1724444853425,7.0563429,2760.6,2760.0,3.62318]
[1724444853621,10.6788429,2760.6,2760.0,3.62318]
[1724444853826,7.0563429,2760.6,2760.0,3.62318]
[1724444854573,3.62254,2760.5,2760.0,3.62318]
[1724444857257,3.4339329,2760.6,2760.1,3.62305]
[1724444857459,7.0563429,2760.6,2760.0,3.62318]
[1724444857662,7.0563429,2760.6,2760.0,7.24629]
[1724444857844,7.0563429,2760.6,2760.0,3.62311]
[1724444858047,7.0563429,2760.6,2760.0,7.24622]
[1724444858337,7.0563429,2760.6,2760.0,3.62311]
[1724444858536,10.6788229,2760.6,2760.0,3.62311]
[1724444858736,4.69045229,2760.5,2760.0,3.62311]
[1724444859143,1.06788229,2760.5,2760.0,3.62311]
[1724444859327,9.64223,2760.6,2760.0,3.62311]
[1724444859532,6.01971,2760.6,2760.0,3.62311]
[1724444859972,9.64222,2760.6,2760.0,3.62311]
[1724444860195,9.64221,2760.6,2760.0,3.62311]
[1724444860404,6.01971,2760.6,2760.0,7.24622]
[1724444860560,6.983903,2760.6,2760.0,3.62311]
[1724444860906,6.983903,2760.6,2760.0,7.2462]
[1724444861060,6.983903,2760.6,2760.0,3.62309]
[1724444861061,3.62255,2760.5,2760.0,3.62309]
[1724444861261,3.62266,2760.4,2759.8,11.06332]
[1724444861562,3.62266,2760.4,2759.8,12.413862]
[1724444861798,10.606423,2760.6,2759.8,12.413862]
[1724444862001,10.606423,2760.6,2760.0,3.62317]
[1724444862607,6.983903,2760.6,2760.0,3.62317]
[1724444863103,6.983903,2760.6,2760.0,7.24629]
[1724444864277,10.606403,2760.6,2760.0,3.62312]
[1724444864765,3.62255,2760.5,2760.0,3.62312]
[1724444865191,3.62255,2760.5,2760.0,7.24624]
[1724444865511,3.62255,2760.5,2760.0,7.24621]
[1724444865803,3.62255,2760.5,2760.0,3.62309]
[1724444866104,3.62255,2760.5,2760.0,7.24621]
[1724444867813,3.62222,2760.8,2760.1,6.12256]
[1724444868315,7.24443,2760.8,2760.3,3.62272]
[1724444868826,3.62221,2760.8,2760.3,3.62272]
[1724444870204,7.24443,2760.8,2760.3,3.62272]
[1724444870506,3.62221,2760.8,2760.3,3.62272]
[1724444870685,3.62221,2760.8,2760.3,7.24543]
[1724444870859,3.62221,2760.8,2760.3,3.62271]
[1724444871807,3.62221,2760.8,2760.1,6.12254]
[1724444871808,3.62235,2760.7,2760.1,6.12254]
[1724444872170,3.62235,2760.7,2760.1,9.74552]
[1724444872580,3.6224,2760.6,2760.1,6.12254]
[1724444872835,3.62221,2760.8,2759.8,7.44]
[1724444872836,3.6228,2760.3,2759.8,7.44]
[1724444873136,5.90484,2760.2,2759.8,7.44]
[1724444874181,2.2819,2760.2,2759.8,7.44]
[1724444874522,2.2819,2760.2,2759.8,11.06338]
[1724444875617,3.62279,2760.3,2759.8,11.06338]
[1724444875812,7.24565,2760.3,2759.8,11.06338]
[1724444876186,3.62293,2760.2,2759.5,25.86925]
[1724444876386,3.62293,2760.2,2759.5,13.40925]
[1724444876387,3.62319,2760.0,2759.5,13.40925]
[1724444876641,3.62319,2760.0,2759.5,3.62375]
[1724444877010,3.62365,2759.7,2759.2,7.44]
[1724444877237,3.62343,2759.9,2759.2,11.06415]
[1724444877443,3.985863,2759.8,2759.2,11.06415]
[1724444879831,3.62343,2759.9,2759.3,3.62408]
[1724444880126,7.24686,2759.9,2759.3,3.62408]
[1724444880536,3.62349,2759.8,2759.3,3.62408]
[1724444882408,3.62349,2759.8,2759.2,30.89688178]
[1724444882609,3.62349,2759.8,2759.3,3.6241]
[1724444883650,3.62349,2759.8,2759.2,33.29381656]
[1724444883651,3.62349,2759.8,2759.2,36.91801656]
[1724444884725,3.62349,2759.8,2759.2,34.63841656]
[1724444885452,3.62359,2759.7,2759.2,34.63841656]
[1724444885655,7.24726,2759.7,2759.2,34.63841656]
[1724444885813,3.62359,2759.7,2759.2,30.89695178]
[1724444886015,3.62388,2759.5,2759.0,19.83275178]
[1724444886362,3.62395,2759.5,2759.0,19.83275178]
[1724444886508,7.24787,2759.5,2759.0,19.83275178]
[1724444886709,7.24785,2759.5,2759.0,19.83275178]
[1724444886936,3.62399,2759.4,2759.0,19.83275178]
[1724444887154,3.62392,2759.5,2759.0,19.83275178]
[1724444887155,5.90027,2759.1,2759.0,19.83275178]
[1724444887913,3.6245,2759.0,2758.5,7.44]
[1724444888108,3.62476,2758.8,2758.5,7.44]
[1724444889157,3.6245,2759.0,2758.5,7.44]
[1724444889358,0.952467,2759.0,2758.5,14.69022]
[1724444889557,2.2759,2759.1,2758.5,14.69022]
[1724444889558,2.2759,2759.1,2758.7,3.62487]
[1724444892251,2.2759,2759.1,2758.7,7.24974]
[1724444892453,2.2759,2759.1,2758.7,3.62482]
[1724444892618,3.62405,2759.4,2758.7,5.98752]
[1724444892619,3.0,2759.3,2758.7,5.98752]
[1724444893345,3.0,2759.3,2758.9,3.62459]
[1724444894014,3.62375,2759.6,2758.9,3.62459]
[1724444894015,2.3315,2759.7,2758.9,0.961211]
[1724444894217,5.95489,2759.9,2759.4,3.62387]
[1724444894456,3.62345,2759.8,2759.0,4.17441]
[1724444894666,3.62345,2759.8,2759.3,3.62409]
[1724444895857,6.62361,2759.7,2759.1,3.62427]
[1724444896154,6.62361,2759.7,2759.2,3.62416]
[1724444898251,2.3613,2759.4,2758.7,2.3627]
[1724444898455,2.3613,2759.4,2758.7,3.6248]
[1724444898686,3.62412,2759.3,2758.7,3.6248]
[1724444898888,3.62438,2759.1,2758.6,3.62501]
[1724444899092,3.62438,2759.1,2758.6,4.576443]
[1724444900446,10.43401887,2759.7,2758.3,7.44]
[1724444900447,2.3463,2759.0,2758.3,7.44]
[1724444900684,5.97086,2759.0,2758.4,3.62521]
[1724444901201,3.62466,2758.9,2758.4,3.62521]
[1724444905651,5.97086,2759.0,2758.4,3.62521]
[1724444905853,9.59547,2759.0,2758.4,3.62521]
[1724444906164,9.59544,2759.0,2758.4,3.62521]
[1724444906494,3.62463,2758.9,2758.4,3.62521]
[1724444906702,3.305844,2759.0,2758.3,7.44]
[1724444906995,3.62496,2758.7,2758.3,7.44]
[1724444908990,2.2574,2758.6,2758.2,19.83275178]
[1724444909694,5.88249,2758.6,2758.2,19.83275178]
[1724444909998,6.833235,2758.6,2758.2,19.83275178]
[1724444911599,3.62523,2758.5,2758.0,11.06581]
[1724444911801,3.62529,2758.4,2758.0,11.06581]
[1724444911960,3.62529,2758.4,2757.9,19.83275178]
[1724444912350,3.62515,2758.5,2757.9,23.45867178]
[1724444916599,3.62515,2758.5,2757.9,3.62592]
[1724444918359,3.62544,2758.3,2757.8,19.83275178]
[1724444920394,7.25098,2758.3,2757.8,19.83275178]
[1724444920563,7.25097,2758.3,2757.8,19.83275178]
[1724444920902,3.62557,2758.2,2757.8,19.83275178]
[1724444921658,3.62569,2758.1,2757.8,19.83275178]
[1724444922517,3.62569,2758.1,2757.6,19.83275178]
[1724444923023,3.62569,2758.1,2757.6,23.45908178]
[1724444923828,2.2883,2758.2,2757.6,23.45900178]
[1724444924029,2.2883,2758.2,2757.6,26.79195196]
[1724444924235,2.2883,2758.2,2757.7,3.6262]
[1724444925829,2.2883,2758.2,2757.6,26.79195196]
[1724444925830,5.91394,2758.2,2757.6,26.79195196]
[1724444926034,5.91394,2758.2,2757.6,23.45900178]
[1724444928596,5.91394,2758.2,2757.6,27.08527178]
[1724444929101,5.91394,2758.2,2757.6,23.45900178]
[1724444931438,2.2883,2758.2,2757.7,6.57777018]
[1724444932945,2.2883,2758.2,2757.6,19.83275178]
[1724444933257,2.2883,2758.2,2757.6,23.45902178]
[1724444934057,2.2883,2758.2,2757.7,3.62618]
[1724444935577,5.91387,2758.2,2757.7,3.62618]
[1724444935743,5.91387,2758.2,2757.6,19.83275178]
[1724444936145,3.6257,2758.1,2757.6,19.83275178]
[1724444939777,3.6257,2758.1,2757.6,22.92266096]
[1724444940134,0.1,2758.3,2758.2,3.62555]
[1724444941842,0.1,2758.3,2758.0,3.62578]
[1724444942263,0.1,2758.3,2757.9,3.62586]
[1724444943032,0.1,2758.3,2758.0,3.6258]
[1724444943237,0.1,2758.3,2758.0,0.725166]
[1724444943582,0.1,2758.3,2757.9,3.62586]
[1724444943933,0.1,2758.3,2757.9,3.62585]
[1724444944181,0.1,2758.3,2758.0,3.62581]
[1724444945067,0.1,2758.3,2757.9,3.62585]
[1724444946139,0.1,2758.3,2757.8,3.62606]
[1724444946344,0.1,2758.3,2757.9,3.62581]
[1724444946770,2.4246,2758.3,2757.9,3.62581]
[1724444947594,6.05005,2758.3,2757.8,3.62606]
[1724444949344,9.67556,2758.3,2757.7,19.83275178]
[1724444949661,2.5018,2758.2,2757.7,19.83275178]
[1724444949977,3.124525,2758.2,2757.7,19.83275178]
[1724444950581,3.62571,2758.1,2757.7,19.83275178]
[1724444951194,7.25147,2758.1,2757.7,19.83275178]
[1724444951397,3.62571,2758.1,2757.7,19.83275178]
[1724444955355,2.2928,2757.6,2757.2,19.83275178]
[1724444955507,2.2928,2757.6,2757.1,0.1339736]
[1724444955713,5.2928,2757.8,2757.1,3.7608736]
[1724444956013,8.91899,2757.8,2757.1,3.7608736]
[1724444956243,10.24099135,2757.8,2757.1,3.7608736]
[1724444957113,3.62623,2757.7,2757.1,3.7608736]
[1724444957517,6.61480135,2757.8,2757.1,3.7608736]
[1724444957873,10.24088135,2757.8,2757.1,3.7608736]
[1724444958373,8.91888,2757.8,2757.1,3.7608736]
[1724444959217,3.62621,2757.7,2757.1,3.7608736]
[1724444959834,3.62621,2757.7,2757.1,0.1339736]
[1724444960644,3.0,2757.8,2757.2,5.94421]
[1724444960860,3.0,2757.8,2757.3,0.60781836]
[1724444961965,6.62608,2757.8,2757.3,0.60781836]
[1724444962175,6.62608,2757.8,2757.2,2.3174]
[1724444962343,6.62608,2757.8,2757.1,3.7608836]
[1724444962662,2.4495,2757.7,2757.1,3.7608836]
[1724444963920,6.07573,2757.7,2757.1,3.7608836]
[1724444964426,6.07573,2757.7,2757.1,0.1339736]
[1724444964859,3.62642,2757.6,2757.1,0.1339736]
[1724444965039,3.62642,2757.6,2757.1,3.48910914]
[1724444966139,3.0,2757.8,2757.2,3.62682]
[1724444966351,3.62581,2758.0,2757.3,2.38792589]
[1724444966523,3.62581,2758.0,2757.4,3.62655]
[1724444966723,3.62581,2758.0,2757.5,0.594195]
[1724444968152,5.97115,2758.1,2757.5,4.220615]
[1724444968517,5.97115,2758.1,2757.5,4.29313723]
[1724444968717,3.62575,2758.1,2757.5,4.29313723]
[1724444968947,3.62575,2758.1,2757.5,4.29313621]
[1724444969148,3.62586,2758.0,2757.5,0.594195]
[1724444969999,0.1,2758.3,2757.7,2.3154]
[1724444970150,0.1,2758.3,2758.1,3.62561]
[1724444970597,0.1,2758.3,2757.8,23.45876178]
[1724444971802,0.1,2758.3,2757.9,3.6259]
[1724444972145,0.1,2758.3,2757.8,23.45875178]
[1724444972351,0.1,2758.3,2757.9,2.57741518]
[1724444973327,2.363,2758.3,2757.9,2.57741518]
[1724444974090,2.363,2758.3,2757.9,6.20330518]
[1724444975027,2.363,2758.3,2757.9,2.57741518]
[1724444975028,5.98848,2758.3,2757.9,2.57741518]
[1724444975322,3.72548,2758.3,2757.9,2.57741518]
[1724444975502,3.72548,2758.3,2758.0,1.90664192]
[1724444975691,0.1,2758.3,2758.0,1.90664192]
[1724444975889,0.1,2758.3,2758.1,19.83275178]
[1724444976096,0.1,2758.3,2758.1,23.45833178]
[1724444976359,0.1,2758.3,2758.1,25.75653178]
[1724444976526,0.1,2758.3,2758.2,3.12888837]
[1724444979023,0.1,2758.3,2758.1,19.83275178]
[1724444979347,2.5957,2758.3,2758.1,19.83275178]
[1724444981994,2.5957,2758.3,2758.2,19.83275178]
[1724444982800,0.1,2758.3,2758.2,19.83275178]
[1724444985695,3.72542,2758.3,2758.2,19.83275178]
[1724444986567,0.1,2758.3,2758.2,19.83275178]
[1724444986973,0.1,2758.3,2758.2,20.55429188]
[1724444990231,0.1,2758.3,2758.2,19.83275178]
[1724444997633,3.72542,2758.3,2758.2,19.83275178]
[1724444998036,0.1,2758.3,2758.2,19.83275178]
[1724444999720,0.1,2758.3,2757.9,19.83275178]
[1724445000868,2.4151,2758.1,2757.9,19.83275178]
[1724445001051,0.604067,2758.0,2757.9,19.83275178]
[1724445001375,6.04085,2758.1,2757.9,19.83275178]
[1724445002764,9.66662,2758.1,2757.9,19.83275178]
[1724445002970,6.04085,2758.1,2757.9,19.83275178]
[1724445003377,3.62581,2758.0,2757.9,19.83275178]
[1724445003672,6.964176,2758.0,2757.9,19.83275178]
[1724445004171,3.338366,2758.0,2757.9,19.83275178]
[1724445004371,2.3717,2758.0,2757.9,19.83275178]
[1724445005057,1.63006153,2758.0,2757.9,19.83275178]
[1724445005261,7.43548887,2758.6,2758.3,2.71296049]
[1724445005436,7.25058,2758.4,2758.3,5.17325701]
[1724445005637,9.01918689,2758.4,2758.3,6.27088682]
[1724445005852,9.01918689,2758.4,2758.3,6.28168429]
[1724445006231,12.64447689,2758.4,2758.3,6.28168429]
[1724445008275,14.96177689,2758.4,2758.3,6.28168429]
[1724445009375,11.33648689,2758.4,2758.3,6.28168429]
[1724445010586,7.75459,2758.4,2758.3,6.28168429]
[1724445010749,5.43729,2758.4,2758.3,6.28168429]
[1724445010954,9.06258,2758.4,2758.3,6.28168429]
[1724445011153,11.52678,2758.4,2758.3,6.28168429]
[1724445011402,7.90149,2758.4,2758.3,6.28168429]
[1724445011701,9.43520689,2758.4,2758.3,6.28168429]
[1724445011913,13.06049689,2758.4,2758.3,6.28168429]
[1724445012460,12.43520689,2758.4,2758.3,6.28168429]
[1724445012691,10.90149,2758.4,2758.3,6.28168429]
[1724445012998,8.43729,2758.4,2758.3,6.28168429]
[1724445016675,12.06258,2758.4,2758.3,6.28168429]
[1724445018009,14.42708,2758.4,2758.3,6.28168429]
[1724445018312,18.05237,2758.4,2758.3,6.28168429]
[1724445018459,20.23864789,2758.4,2758.3,6.28168429]
[1724445023491,22.23864789,2758.4,2758.3,6.28168429]
[1724445024663,25.86393789,2758.4,2758.3,3.46850409]
[1724445026672,2.4275,2757.7,2757.1,2.5503736]
[1724445026874,3.62674,2757.3,2757.1,0.1339736]
[1724445031185,3.62686,2757.2,2757.1,0.1339736]
[1724445034912,3.62674,2757.3,2757.1,0.1339736]
[1724445035798,6.62654,2757.5,2757.1,0.40006096]
[1724445035999,6.62654,2757.5,2757.2,2.3197]
[1724445036468,3.62629,2757.7,2757.2,2.3197]
[1724445036469,3.62638,2757.6,2757.2,2.3197]
[1724445036871,3.62629,2757.7,2757.2,2.3197]
[1724445036872,3.62649,2757.5,2757.2,2.3197]
[1724445037516,3.62662,2757.4,2757.2,2.3197]
[1724445039174,3.62645,2757.6,2757.2,2.3197]
[1724445039473,3.6263,2757.7,2757.2,2.3197]
[1724445039474,3.62649,2757.5,2757.2,2.3197]
[1724445039886,7.25303,2757.5,2757.2,2.3197]
[1724445040628,3.62662,2757.4,2757.1,19.96672538]
[1724445041537,3.62686,2757.2,2757.1,19.96672538]
[1724445041891,3.62662,2757.4,2757.1,19.96672538]
[1724445042120,3.62638,2757.6,2757.1,22.59097392]
[1724445042324,6.62617,2757.8,2757.2,5.96294]
[1724445042596,3.62625,2757.7,2757.2,5.96294]
[1724445042797,3.62635,2757.6,2757.2,2.3361]
[1724445043612,6.62616,2757.8,2757.2,5.96296]
[1724445043937,6.62616,2757.8,2757.4,2.3361]
[1724445044341,6.62616,2757.8,2757.4,22.16885178]
[1724445044645,10.25231,2757.8,2757.4,22.16885178]
[1724445044846,3.62624,2757.7,2757.4,22.16885178]
[1724445045042,3.62636,2757.6,2757.4,22.16885178]
[1724445045340,3.62647,2757.5,2757.4,19.83275178]
[1724445046101,7.25294,2757.5,2757.4,19.83275178]
[1724445046728,3.62647,2757.5,2757.4,19.83275178]
[1724445047116,3.62636,2757.6,2757.4,19.83275178]
[1724445047453,7.25278,2757.6,2757.4,19.83275178]
[1724445048255,6.62612,2757.8,2757.4,21.81602696]
[1724445048439,3.0,2757.8,2757.5,2.2912]
[1724445048636,6.62604,2757.9,2757.5,2.2912]
[1724445048890,3.62616,2757.8,2757.5,2.2912]
[1724445049035,3.62616,2757.8,2757.5,3.07214862]
[1724445049738,3.62623,2757.7,2757.4,19.83275178]
[1724445050148,3.62635,2757.6,2757.4,19.83275178]
[1724445050383,3.62647,2757.5,2757.2,22.12395178]
[1724445050551,3.62667,2757.4,2757.2,22.12395178]
[1724445050747,3.62647,2757.5,2757.2,22.12395178]
[1724445052039,7.25304,2757.5,2757.2,22.12395178]
[1724445052998,3.62647,2757.5,2757.2,22.12395178]
[1724445053438,3.62642,2757.6,2757.2,25.47645432]
[1724445053990,3.62642,2757.6,2757.2,22.12395178]
[1724445054485,3.6263,2757.7,2757.2,22.12395178]
[1724445054687,7.2526,2757.7,2757.2,22.12395178]
[1724445054983,7.25259,2757.7,2757.2,22.12395178]
[1724445055142,3.62638,2757.6,2757.2,22.12395178]
[1724445056204,3.62629,2757.7,2757.2,22.90986553]
[1724445056555,3.0,2757.9,2757.4,3.62652]
[1724445056755,3.0,2757.9,2757.5,2.4235]
[1724445056756,3.62597,2757.9,2757.5,2.4235]
[1724445056982,3.0,2757.8,2757.5,2.4235]
[1724445057389,6.62609,2757.8,2757.5,2.4235]
[1724445057597,6.62609,2757.8,2757.3,3.62669]
[1724445057598,6.62609,2757.8,2757.3,2.3791]
[1724445057806,6.62609,2757.8,2757.3,6.12056478]
[1724445057956,3.62645,2757.6,2757.2,19.83275178]
[1724445058159,3.62656,2757.5,2757.2,19.83275178]
[1724445059497,3.62661,2757.4,2757.2,19.83275178]
[1724445060400,3.62673,2757.3,2757.2,19.83275178]
[1724445062309,3.62686,2757.2,2757.1,0.1339736]
[1724445062525,3.62661,2757.4,2757.1,0.1339736]
[1724445063014,7.25331,2757.4,2757.1,0.1339736]
[1724445063921,3.6268,2757.3,2757.1,0.1339736]
[1724445064206,3.62661,2757.4,2757.1,0.1339736]
[1724445064207,10.25372,2757.2,2757.1,0.1339736]
[1724445066361,3.0,2757.2,2757.1,0.1339736]
[1724445067381,3.62686,2757.2,2757.1,0.1339736]
[1724445067695,7.289546,2757.2,2757.1,0.1339736]
[1724445067901,6.567546,2757.2,2757.1,0.1339736]
[1724445068085,9.567546,2757.2,2757.1,0.1339736]
[1724445068269,13.194406,2757.2,2757.1,0.1339736]
[1724445072625,10.916406,2757.2,2757.1,0.1339736]
[1724445073304,6.62686,2757.2,2757.1,0.1339736]
[1724445073507,3.0,2757.2,2757.1,0.1339736]
[1724445073813,3.0,2757.3,2757.1,0.1339736]
[1724445074117,3.62614,2757.8,2757.3,2.3815]
[1724445074519,3.62628,2757.7,2757.3,2.3815]
[1724445075211,3.6265,2757.5,2757.1,2.5154736]
[1724445076320,3.62629,2757.7,2757.1,6.77670996]
[1724445076613,3.62641,2757.6,2757.1,3.14972996]
[1724445078817,7.25283,2757.6,2757.1,3.14972996]
[1724445079024,3.6265,2757.5,2757.1,3.14972996]
[1724445079210,3.62661,2757.4,2757.1,3.14972996]
[1724445079433,3.62661,2757.4,2757.1,2.5154736]
[1724445079609,3.62661,2757.4,2757.1,0.1339736]
[1724445079926,7.25331,2757.4,2757.1,0.1339736]
[1724445080125,3.62676,2757.3,2757.1,0.1339736]
[1724445081482,3.62652,2757.5,2757.1,0.1339736]
[1724445084041,7.25308,2757.5,2757.1,0.1339736]
[1724445084800,3.62662,2757.4,2757.1,0.1339736]
[1724445085113,3.62652,2757.5,2757.1,0.1339736]
[1724445085710,4.351801,2757.5,2757.1,0.1339736]
[1724445087159,3.62668,2757.4,2757.1,0.1339736]
[1724445087476,3.62673,2757.3,2757.1,0.1339736]
[1724445087814,7.978401,2757.5,2757.1,0.1339736]
[1724445088239,3.62665,2757.4,2757.1,0.1339736]
[1724445088429,4.4244951,2757.4,2757.1,0.1339736]
[1724445088827,0.7978451,2757.4,2757.1,0.1339736]
[1724445089030,3.62652,2757.5,2757.1,0.1339736]
[1724445089833,3.62653,2757.5,2757.1,0.1339736]
[1724445090057,7.2531,2757.5,2757.1,0.1339736]
[1724445090268,3.62661,2757.4,2757.1,0.1339736]
[1724445090654,3.62653,2757.5,2757.1,0.1339736]
[1724445090838,4.35181,2757.5,2757.1,0.1339736]
[1724445092038,7.97836,2757.5,2757.1,0.1339736]
[1724445092236,4.35181,2757.5,2757.1,0.1339736]
[1724445092571,7.97836,2757.5,2757.1,0.1339736]
[1724445092866,6.84311,2757.5,2757.1,0.1339736]
[1724445093067,4.310951,2757.4,2757.1,0.1339736]
[1724445093627,0.684311,2757.4,2757.1,0.1339736]
[1724445093979,4.35181,2757.5,2757.1,0.1339736]
[1724445095254,7.97841,2757.5,2757.1,0.1339736]
[1724445095428,4.35181,2757.5,2757.1,0.1339736]
[1724445095783,7.97837,2757.5,2757.1,0.1339736]
[1724445096128,3.6268,2757.3,2757.1,0.1339736]
[1724445096322,0.36268,2757.2,2757.1,0.1339736]
[1724445096837,3.6268,2757.3,2757.1,0.1339736]
[1724445097376,7.25364,2757.3,2757.1,0.1339736]
[1724445097665,3.6268,2757.3,2757.1,0.1339736]
[1724445099355,4.35184,2757.5,2757.1,0.1339736]
[1724445099356,3.62661,2757.4,2757.1,0.1339736]
[1724445099978,7.97841,2757.5,2757.1,0.1339736]
[1724445100181,4.424461,2757.4,2757.1,0.1339736]
[1724445101079,3.62675,2757.3,2757.1,0.1339736]
[1724445101773,3.62686,2757.2,2757.1,0.1339736]
[1724445101943,9.68302,2757.2,2757.1,0.1339736]
[1724445102271,12.68302,2757.2,2757.1,0.1339736]
[1724445102474,14.3937691,2757.2,2757.1,0.1339736]
[1724445105592,11.9644691,2757.2,2757.1,0.1339736]
[1724445112266,15.77487797,2757.2,2757.1,0.1339736]
[1724445112789,19.40173797,2757.2,2757.1,0.1339736]
[1724445112958,21.87083797,2757.2,2757.1,0.1339736]
[1724445114599,3.62812,2756.3,2756.1,2.4714]
[1724445114762,3.62812,2756.3,2756.0,20.0]
[1724445116187,3.81040887,2756.4,2756.0,20.0]
[1724445116188,3.62831,2756.1,2756.0,20.0]
[1724445116668,3.81040887,2756.4,2756.1,2.4714]
[1724445116669,3.62793,2756.4,2756.1,2.4714]
[1724445116847,3.0,2756.3,2756.1,2.4714]
[1724445117045,3.0,2756.5,2756.1,2.4714]
[1724445117250,3.62775,2756.6,2756.3,2.4714]
[1724445117766,3.6278,2756.5,2756.3,2.4714]
[1724445118089,3.62792,2756.4,2756.3,2.4714]
[1724445118254,3.62792,2756.4,2756.1,2.278]
[1724445118455,3.62818,2756.2,2756.1,2.278]
[1724445118658,3.62809,2756.3,2756.1,2.278]
[1724445118968,3.62792,2756.4,2756.1,2.278]
[1724445119285,3.0,2756.3,2756.1,2.278]
[1724445119650,6.62807,2756.3,2756.1,2.278]
[1724445120064,3.62818,2756.2,2756.1,2.278]
[1724445120876,3.62831,2756.1,2756.0,20.0]
[1724445121604,3.62831,2756.1,2755.9,2.278]
[1724445122353,3.6287,2755.9,2755.4,2.4513]
[1724445122604,3.62884,2755.7,2755.4,2.4513]
[1724445123115,3.62845,2756.0,2755.5,2.3572]
[1724445123324,6.6281,2756.3,2755.6,5.98609]
[1724445123527,3.6281,2756.3,2755.7,2.3572]
[1724445123728,3.62833,2756.1,2755.7,2.3572]
[1724445123942,2.3671,2756.8,2755.7,2.3572]
[1724445123943,2.3671,2757.3,2755.9,2.3572]
[1724445124171,2.3671,2757.3,2755.7,0.598609]
[1724445124172,3.62736,2756.9,2756.3,2.3572]
[1724445124308,3.62752,2756.7,2756.3,2.3572]
[1724445124641,3.62739,2756.8,2756.3,2.3572]
[1724445125020,3.62715,2757.0,2756.3,2.3572]
[1724445125224,3.62715,2757.0,2756.4,0.56879054]
[1724445125528,3.6269,2757.2,2756.6,2.3535]
[1724445125529,3.62693,2757.2,2756.6,2.3535]
[1724445126098,3.62721,2757.0,2756.6,2.3535]
[1724445126400,7.25445,2757.0,2756.6,2.3535]
[1724445126629,3.62688,2757.2,2756.6,2.3535]
[1724445126830,3.62688,2757.2,2756.7,2.334]
[1724445127135,7.25386,2757.2,2756.7,2.95941691]
[1724445127440,3.62704,2757.1,2756.7,2.95941691]
[1724445127648,3.62704,2757.1,2756.7,2.334]
[1724445127854,3.62688,2757.2,2756.7,2.334]
[1724445128357,3.62703,2757.1,2756.7,2.334]
[1724445129046,3.62683,2757.3,2756.7,2.334]
[1724445129349,3.62687,2757.2,2756.7,2.334]
[1724445129638,3.62687,2757.2,2756.9,2.3972]
[1724445130837,3.627,2757.1,2756.9,2.3972]
[1724445131196,3.62687,2757.2,2756.9,2.3972]